fUSD/lending_fUSD_20240822
["ID","MTS","AMOUNT","RATE_DAILY","PERIOD"]
[335530672,1724311841057,-312.139997,0.000108,2]
[335530673,1724311841068,-23713.43801055,0.000108,2]
[335530674,1724311841092,-1209.54095137,0.000108,2]
[335530695,1724311843306,-250.69,0.000108,2]
[335530696,1724311843317,-317.31,0.000108,2]
[335530697,1724311843326,-3973.10672934,0.000108,2]
[335530698,1724311843337,-110918.43388008,0.000108,2]
[335530699,1724311843348,-449.242,0.000108,2]
[335530700,1724311843359,-488.32985,0.000108,2]
[335530701,1724311843573,-525.2253963,0.000107,2]
[335530702,1724311843582,-8004.2546037,0.000108,2]
[335530703,1724311843594,-20115.93455092,0.000108,2]
[335530707,1724311844011,-1003.54849003,0.000108,2]
[335530708,1724311844166,-1434.49032477,0.000108,2]
[335530709,1724311846233,-2678.93484286,0.000107,2]
[335530710,1724311846244,-3568.141199,0.000107,2]
[335530711,1724311846255,-1252.92395814,0.000107,2]
[335530712,1724311846265,-1269.85644186,0.000108,2]
[335530713,1724311846276,-4610.71360311,0.000108,2]
[335530714,1724311846287,-1394.51005659,0.000108,2]
[335530715,1724311846348,-572.85,0.000108,2]
[335530719,1724311850274,-15183.09361482,0.000108,2]
[335530720,1724311850285,-2580.28709736,0.000108,2]
[335530721,1724311850297,-569.23254844,0.000108,2]
[335530722,1724311850308,-295.85754478,0.000108,2]
[335530723,1724311850319,-1143.97892178,0.000108,2]
[335530724,1724311850331,-1891.09879631,0.000108,2]
[335530725,1724311850345,-517.49928082,0.000108,2]
[335530726,1724311850356,-269.38241397,0.000108,2]
[335530727,1724311850366,-27466.2388339,0.000108,2]
[335530728,1724311850381,-1752.42752178,0.000108,2]
[335530729,1724311850396,-1509.11451349,0.000108,2]
[335530730,1724311850406,-3662.35530742,0.000108,2]
[335530731,1724311850418,-910.07126,0.000108,2]
[335530732,1724311878689,1635.35007841,9.845e-05,2]
[335530733,1724311880261,500.0,8.964e-05,2]
[335530734,1724311882324,500.0,8.964e-05,2]
[335530735,1724311893686,1635.35007841,9.845e-05,2]
[335530736,1724311902098,1078.43,9.864e-05,2]
[335530737,1724312028474,200.0,9.757e-05,2]
[335530738,1724312044266,500.0,8.964e-05,2]
[335530739,1724312062759,517.56,8.219e-05,2]
[335530740,1724312064844,500.0,8.964e-05,2]
[335530741,1724312135311,250.0,9.72e-05,2]
[335530742,1724312180202,1635.35007841,9.72e-05,2]
[335530743,1724312237134,549.85,9.732e-05,2]
[335530744,1724312267896,166.76,9.703e-05,2]
[335530745,1724312336256,1635.59503388,9.732e-05,2]
[335530746,1724312347992,462.35,9.655e-05,2]
[335530747,1724312407459,500.0,8.964e-05,2]
[335530748,1724312414836,500.0,8.964e-05,2]
[335530749,1724312422218,1635.59503388,9.655e-05,2]
[335530750,1724312426438,267.99,9.659e-05,2]
[335530751,1724312439584,400.94390626,9.824e-05,2]
[335530752,1724312453498,600.0,8.964e-05,2]
[335530753,1724312460994,500.0,8.964e-05,2]
[335530754,1724312470565,500.0,8.964e-05,2]
[335530755,1724312477392,197.01,7.716e-05,2]
[335530756,1724312489771,1548.97,9.645e-05,2]
[335530757,1724312502412,5000.0,9.9e-05,2]
[335530758,1724312513750,766.61,9.65e-05,2]
[335530759,1724312517446,26171.27753304,9.899e-05,2]
[335530760,1724312530103,200.0,9.652e-05,2]
[335530761,1724312530739,530.78,8.219e-05,2]
[335530762,1724312532212,587.74684353,7.716e-05,2]
[335530763,1724312534348,1746.14005531,9.353e-05,2]
[335530764,1724312561951,6234.65291241,9.353e-05,2]
[335530765,1724312588135,8685.43802874,9.899e-05,2]
[335530766,1724312600285,250.0,9.649e-05,2]
[335530767,1724312614191,2502.45974174,9.9e-05,2]
[335530768,1724312629932,5000.0,0.00012,32]
[335530770,1724312715953,194.75826541,9.715e-05,2]
[335530771,1724312730390,436.24,9.627e-05,2]
[335530772,1724312736367,547.29718905,9.899e-05,2]
[335530773,1724312757854,160.63,9.644e-05,2]
[335530774,1724312774216,1635.59503388,9.899e-05,2]
[335530775,1724312885097,516.81257679,9.899e-05,2]
[335530776,1724312955856,1000.0,9.608e-05,2]
[335530789,1724313031395,-589.0,9.924e-05,2]
[335530790,1724313031404,-176.29022052,9.924e-05,2]
[335530797,1724313031657,-127.01351768,9.924e-05,2]
[335530798,1724313031666,-266.89184508,9.924e-05,2]
[335530799,1724313031676,-155.0,9.929e-05,2]
[335530800,1724313031685,-1049.64030745,9.941e-05,2]
[335530801,1724313031695,-1946.11818079,9.943e-05,2]
[335530802,1724313031703,-1050.0,9.943e-05,2]
[335530803,1724313031713,-150.0,9.973e-05,2]
[335530804,1724313031722,-300.0,9.986e-05,2]
[335530805,1724313031731,-155.0,9.988e-05,2]
[335530806,1724313031740,-600.70370687,9.988e-05,2]
[335530807,1724313031749,-642.70938922,9.988e-05,2]
[335530808,1724313031758,-531.44678913,9.988e-05,2]
[335530810,1724313031767,-1050.0,0.0001,2]
[335530811,1724313031777,-3638.1452817,0.0001,2]
[335530813,1724313031786,-5000.0,0.0001,2]
[335530815,1724313031795,-150.0,0.00010008,2]
[335530817,1724313031804,-442.65918777,0.00010009,2]
[335530818,1724313031814,-203.06755488,0.00010026,2]
[335530820,1724313031823,-166.39780491,0.00010026,2]
[335530822,1724313031832,-9990.75503824,0.00010096,2]
[335530839,1724313031993,-9.23496176,0.00010096,2]
[335530841,1724313032002,-438.89462578,0.00010268,2]
[335530867,1724313037465,-155.0,9.943e-05,2]
[335530868,1724313037475,-2124.90537422,0.00010268,2]
[335530869,1724313037483,-528.84,0.00010334,2]
[335530870,1724313037492,-196.78607575,0.00010334,2]
[335530871,1724313037515,-403.21392425,0.00010334,2]
[335530872,1724313037525,-500.0,0.00010334,2]
[335530873,1724313037534,-530.78,0.00010458,2]
[335530874,1724313037544,-348.33845653,0.00010471,2]
[335530875,1724313037553,-1500.0,0.00010493,2]
[335530876,1724313037563,-1866.38643791,0.00010505,2]
[335530877,1724313037572,-1500.0,0.00010523,2]
[335530878,1724313037581,-150.0,0.00010526,2]
[335530879,1724313037591,-150.0,0.00010529,2]
[335530880,1724313037600,-150.99,0.00010536,2]
[335530881,1724313037610,-874.129566,0.00010542,2]
[335530882,1724313037618,-150.0,0.00010547,2]
[335530883,1724313037628,-1829.54544548,0.00010566,2]
[335530884,1724313037637,-150.0,0.00010567,2]
[335530885,1724313037646,-150.0,0.00010584,2]
[335530886,1724313037655,-150.0,0.00010593,2]
[335530887,1724313037664,-1500.0,0.00010604,2]
[335530888,1724313037673,-150.0,0.00010612,2]
[335530889,1724313037682,-150.0,0.00010612,2]
[335530890,1724313037691,-150.0,0.00010622,2]
[335530891,1724313037700,-150.0,0.00010631,2]
[335530892,1724313037709,-150.0,0.00010635,2]
[335530893,1724313037718,-295.5407423,0.00010638,2]
[335530895,1724313037729,-1204.4592577,0.00010638,2]
[335530896,1724313037739,-150.0,0.0001064,2]
[335530897,1724313037747,-150.0,0.00010642,2]
[335530898,1724313037757,-150.0,0.00010644,2]
[335530899,1724313037766,-150.0,0.0001065,2]
[335530900,1724313037775,-150.0,0.00010661,2]
[335530902,1724313037784,-209.44699376,0.00010664,2]
[335530904,1724313037793,-203.24854396,0.00010666,2]
[335530906,1724313037802,-361.99457083,0.00010677,2]
[335530908,1724313037811,-838.28944,0.0001069,2]
[335530910,1724313037820,-150.0,0.00010692,2]
[335530912,1724313037830,-1300.9168339,0.00010699,2]
[335530914,1724313037841,-270.0311,0.000107,2]
[335530916,1724313037849,-381.34959063,0.000107,2]
[335530942,1724313039506,-2676.96030937,0.000107,2]
[335530944,1724313039516,-164.58292647,0.000107,2]
[335530946,1724313039525,-150.0,0.000107,2]
[335530948,1724313039535,-350.1502642,0.000107,2]
[335530949,1724313039544,-150.0,0.00010712,2]
[335530951,1724313039553,-150.0,0.0001073,2]
[335530953,1724313039563,-150.0,0.00010735,2]
[335530954,1724313039571,-150.0,0.00010736,2]
[335530956,1724313039580,-150.0,0.00010748,2]
[335530957,1724313039589,-200.0,0.00010773,2]
[335530958,1724313039598,-200.0,0.00010773,2]
[335530959,1724313039607,-150.0,0.00010779,2]
[335530960,1724313039616,-150.0,0.00010781,2]
[335530961,1724313039625,-150.0,0.00010784,2]
[335530962,1724313039634,-150.0,0.00010794,2]
[335530963,1724313039644,-241.811,0.00010797,2]
[335530964,1724313039653,-2639.34147816,0.00010797,2]
[335530965,1724313039662,-500.0,0.00010799,2]
[335530966,1724313039672,-500.0,0.00010799,2]
[335530967,1724313039681,-5919.30568265,0.00010799,2]
[335530968,1724313039690,-500.0,0.00010799,2]
[335530969,1724313039700,-366.51572793,0.00010799,2]
[335530970,1724313039709,-500.0,0.00010799,2]
[335530971,1724313039720,-500.0,0.00010799,2]
[335530972,1724313039729,-500.0,0.00010799,2]
[335530973,1724313039737,-500.0,0.00010799,2]
[335530974,1724313039746,-500.0,0.00010799,2]
[335530975,1724313039755,-500.0,0.00010799,2]
[335530976,1724313039764,-500.0,0.00010799,2]
[335530977,1724313039773,-500.0,0.00010799,2]
[335530978,1724313039782,-500.0,0.00010799,2]
[335530979,1724313039791,-500.0,0.00010799,2]
[335530980,1724313039801,-500.0,0.00010799,2]
[335530981,1724313039810,-500.0,0.00010799,2]
[335530982,1724313039820,-500.0,0.00010799,2]
[335530983,1724313039830,-405.71737532,0.00010799,2]
[335530984,1724313039839,-500.0,0.00010799,2]
[335530985,1724313039848,-500.0,0.00010799,2]
[335530986,1724313039857,-500.0,0.00010799,2]
[335530987,1724313039866,-500.0,0.00010799,2]
[335530988,1724313039875,-500.0,0.00010799,2]
[335530989,1724313039885,-518.050873,0.00010799,2]
[335530990,1724313039895,-500.0,0.00010799,2]
[335530991,1724313039904,-500.0,0.00010799,2]
[335530992,1724313039913,-500.0,0.00010799,2]
[335530993,1724313039922,-500.0,0.00010799,2]
[335530994,1724313039932,-500.0,0.00010799,2]
[335530996,1724313039942,-500.0,0.00010799,2]
[335530998,1724313039950,-500.0,0.00010799,2]
[335531000,1724313039959,-500.0,0.00010799,2]
[335531002,1724313039968,-208.54717971,0.00010799,2]
[335531003,1724313039977,-500.0,0.00010799,2]
[335531004,1724313039986,-550.32772997,0.00010799,2]
[335531005,1724313039995,-500.0,0.00010799,2]
[335531006,1724313040005,-500.0,0.00010799,2]
[335531007,1724313040013,-500.0,0.00010799,2]
[335531008,1724313040023,-250.47140985,0.00010799,2]
[335531009,1724313040032,-500.0,0.00010799,2]
[335531011,1724313040041,-500.0,0.00010799,2]
[335531012,1724313040049,-500.0,0.00010799,2]
[335531013,1724313040058,-500.0,0.00010799,2]
[335531014,1724313040067,-500.0,0.00010799,2]
[335531015,1724313040076,-500.0,0.00010799,2]
[335531016,1724313040085,-500.0,0.00010799,2]
[335531017,1724313040093,-583.80542564,0.00010799,2]
[335531018,1724313040102,-500.0,0.00010799,2]
[335531019,1724313040111,-500.0,0.00010799,2]
[335531020,1724313040120,-500.0,0.00010799,2]
[335531021,1724313040128,-500.0,0.00010799,2]
[335531022,1724313040137,-500.0,0.00010799,2]
[335531023,1724313040147,-500.0,0.00010799,2]
[335531024,1724313040157,-500.0,0.00010799,2]
[335531025,1724313040166,-449.71,0.00010799,2]
[335531026,1724313040175,-500.0,0.00010799,2]
[335531027,1724313040183,-500.0,0.00010799,2]
[335531028,1724313040192,-500.0,0.00010799,2]
[335531029,1724313040201,-500.0,0.00010799,2]
[335531030,1724313040210,-500.0,0.00010799,2]
[335531031,1724313040218,-500.0,0.00010799,2]
[335531032,1724313040227,-500.0,0.00010799,2]
[335531033,1724313040235,-500.0,0.00010799,2]
[335531034,1724313040244,-500.0,0.00010799,2]
[335531035,1724313040253,-500.0,0.00010799,2]
[335531036,1724313040262,-500.0,0.00010799,2]
[335531037,1724313040271,-417.93,0.00010799,2]
[335531038,1724313040280,-500.0,0.00010799,2]
[335531039,1724313040289,-500.0,0.00010799,2]
[335531040,1724313040298,-500.0,0.00010799,2]
[335531041,1724313040308,-500.0,0.00010799,2]
[335531042,1724313040317,-500.0,0.00010799,2]
[335531043,1724313040326,-500.0,0.00010799,2]
[335531044,1724313040335,-500.0,0.00010799,2]
[335531045,1724313040344,-644.14,0.00010799,2]
[335531046,1724313040354,-500.0,0.00010799,2]
[335531047,1724313040363,-500.0,0.00010799,2]
[335531048,1724313040372,-500.0,0.00010799,2]
[335531049,1724313040382,-500.0,0.00010799,2]
[335531050,1724313040391,-500.0,0.00010799,2]
[335531051,1724313040400,-500.0,0.00010799,2]
[335531052,1724313040408,-500.0,0.00010799,2]
[335531053,1724313040418,-500.0,0.00010799,2]
[335531054,1724313040430,-500.0,0.00010799,2]
[335531055,1724313040439,-500.0,0.00010799,2]
[335531056,1724313040449,-585.03336439,0.00010799,2]
[335531057,1724313040458,-500.0,0.00010799,2]
[335531058,1724313040467,-500.0,0.00010799,2]
[335531059,1724313040476,-500.0,0.00010799,2]
[335531060,1724313040485,-500.0,0.00010799,2]
[335531061,1724313040494,-500.0,0.00010799,2]
[335531062,1724313040503,-151.02,0.00010799,2]
[335531063,1724313040512,-500.0,0.00010799,2]
[335531064,1724313040521,-500.0,0.00010799,2]
[335531065,1724313040530,-500.0,0.00010799,2]
[335531066,1724313040539,-500.0,0.00010799,2]
[335531067,1724313040549,-500.0,0.00010799,2]
[335531068,1724313040558,-150.8132745,0.00010799,2]
[335531069,1724313040567,-500.0,0.00010799,2]
[335531070,1724313040576,-500.0,0.00010799,2]
[335531071,1724313040586,-516.34481954,0.00010799,2]
[335531072,1724313040595,-500.0,0.00010799,2]
[335531073,1724313040604,-500.0,0.00010799,2]
[335531074,1724313040614,-500.0,0.00010799,2]
[335531075,1724313040623,-500.0,0.00010799,2]
[335531076,1724313040632,-500.0,0.00010799,2]
[335531077,1724313040641,-500.0,0.00010799,2]
[335531078,1724313040650,-500.0,0.00010799,2]
[335531079,1724313040659,-500.0,0.00010799,2]
[335531080,1724313040668,-253.85,0.00010799,2]
[335531081,1724313040677,-500.0,0.00010799,2]
[335531082,1724313040686,-500.0,0.00010799,2]
[335531083,1724313040697,-500.0,0.00010799,2]
[335531084,1724313040706,-500.0,0.00010799,2]
[335531085,1724313040715,-456.11,0.00010799,2]
[335531086,1724313040724,-500.0,0.00010799,2]
[335531087,1724313040733,-500.0,0.00010799,2]
[335531088,1724313040742,-500.0,0.00010799,2]
[335531089,1724313040751,-500.0,0.00010799,2]
[335531090,1724313040760,-500.0,0.00010799,2]
[335531091,1724313040769,-500.0,0.00010799,2]
[335531092,1724313040778,-500.0,0.00010799,2]
[335531093,1724313040787,-620.93,0.00010799,2]
[335531094,1724313040796,-500.0,0.00010799,2]
[335531095,1724313040805,-500.0,0.00010799,2]
[335531096,1724313040815,-500.0,0.00010799,2]
[335531097,1724313040824,-500.0,0.00010799,2]
[335531098,1724313040833,-500.0,0.00010799,2]
[335531099,1724313040842,-408.4,0.00010799,2]
[335531100,1724313040851,-151.22209671,0.00010799,2]
[335531101,1724313040860,-164.40811307,0.00010799,2]
[335531102,1724313040870,-265.50997571,0.00010799,2]
[335531103,1724313040881,-500.0,0.00010799,2]
[335531104,1724313040890,-500.0,0.00010799,2]
[335531105,1724313040900,-500.0,0.00010799,2]
[335531106,1724313040911,-500.0,0.00010799,2]
[335531107,1724313040921,-500.0,0.00010799,2]
[335531108,1724313040931,-308.41,0.00010799,2]
[335531109,1724313040941,-509.0,0.000108,2]
[335531110,1724313040952,-181589.8607653,0.000108,2]
[335531111,1724313041000,-3628.02515621,0.000108,2]
[335531112,1724313041013,-2758.2896275,0.000108,2]
[335531113,1724313041026,-604.46,0.000108,2]
[335531114,1724313041038,-2809.89847193,0.000108,2]
[335531135,1724313042764,-11847.13293886,0.000108,2]
[335531136,1724313042778,-742.5,0.000108,2]
[335531146,1724313045610,-500.0,0.00010799,2]
[335531147,1724313045620,-500.0,0.00010799,2]
[335531148,1724313045629,-500.0,0.00010799,2]
[335531149,1724313045638,-500.0,0.00010799,2]
[335531150,1724313045648,-500.0,0.00010799,2]
[335531151,1724313045660,-197.6,0.00010799,2]
[335531152,1724313045669,-18919.86744899,0.000108,2]
[335531153,1724313045679,-6185.87200783,0.000108,2]
[335531154,1724313083745,1634.59416432,9.608e-05,2]
[335531155,1724313101035,515.64,8.219e-05,2]
[335531156,1724313102250,1634.59416432,9.608e-05,2]
[335531157,1724313104459,500.0,8.964e-05,2]
[335531158,1724313122597,500.0,8.964e-05,2]
[335531159,1724313136965,1074.43,9.699e-05,2]
[335531160,1724313153763,500.0,9.702e-05,2]
[335531161,1724313176855,23900.0,9.702e-05,2]
[335531162,1724313297622,341.37,9.696e-05,2]
[335531163,1724313309226,168.38,9.695e-05,2]
[335531165,1724313450345,200.0,9.9e-05,3]
[335531166,1724313493969,200.0,9.66e-05,2]
[335531167,1724313508862,300.0,9.9e-05,3]
[335531168,1724313540264,3000.0,9.9e-05,3]
[335531169,1724313561058,500.0,8.964e-05,2]
[335531170,1724313600804,507.88,8.219e-05,2]
[335531171,1724313631821,500.0,8.964e-05,2]
[335531172,1724313719968,250.0,9.657e-05,2]
[335531173,1724313753943,242.0,0.00012111,30]
[335531174,1724313772841,23900.0,9.656e-05,2]
[335531175,1724313791667,228.31,9.655e-05,2]
[335531176,1724313795339,293.94,9.655e-05,2]
[335531179,1724313867715,170.99,9.636e-05,2]
[335531180,1724313959564,200.0,9.641e-05,2]
[335531181,1724313975375,310.56673748,9.899e-05,2]
[335531182,1724313987040,155.5628945,9.899e-05,2]
[335531183,1724313988880,275.71,9.739e-05,2]
[335531184,1724314030670,3400.0,9.9e-05,3]
[335531185,1724314038163,155.57775669,9.899e-05,2]
[335531186,1724314038413,840.0,9.648e-05,2]
[335531187,1724314041695,173.39,9.639e-05,2]
[335531188,1724314057124,200.0,9.638e-05,2]
[335531189,1724314069225,633.53,9.633e-05,2]
[335531190,1724314079371,12499.23,9.631e-05,2]
[335531191,1724314090550,26166.76980326,9.899e-05,2]
[335531211,1724314231556,-265.50997571,9.943e-05,2]
[335531212,1724314231565,-81.89102421,9.943e-05,2]
[335531213,1724314231576,-1784.4954137,9.943e-05,2]
[335531214,1724314231585,-203.06755488,9.943e-05,2]
[335531215,1724314231593,-547.29718905,9.988e-05,2]
[335531216,1724314231602,-611.78022026,9.988e-05,2]
[335531217,1724314231612,-300.0,9.998e-05,2]
[335531218,1724314231620,-300.0,9.998e-05,2]
[335531219,1724314231629,-505.57,0.0001,2]
[335531220,1724314231638,-500.0,0.0001,2]
[335531221,1724314231647,-500.0,0.0001,2]
[335531222,1724314231656,-500.0,0.0001,2]
[335531223,1724314231665,-206.64,0.0001,2]
[335531224,1724314231673,-588.67,0.0001,2]
[335531225,1724314231683,-1050.0,0.0001,2]
[335531226,1724314231692,-2918.08758735,0.0001,3]
[335531227,1724314231704,-1500.7981108,0.0001,3]
[335531228,1724314231715,-505.43097376,0.0001,3]
[335531229,1724314231726,-627.68,0.0001,3]
[335531230,1724314231737,-1047.0,0.0001,3]
[335531231,1724314231749,-201.00332809,0.0001,3]
[335531243,1724314231927,-317.28676016,0.00010009,2]
[335531245,1724314231936,-497.71048646,0.00010009,2]
[335531247,1724314231948,-482.77585744,0.00010009,2]
[335531249,1724314231963,-960.92161359,0.00010009,2]
[335531251,1724314231976,-285.54986939,0.00010009,2]
[335531254,1724314231986,-687.65858554,0.00010009,2]
[335531257,1724314231995,-362.06547498,0.00010026,2]
[335531261,1724314232010,-169.26713133,0.00010026,2]
[335531263,1724314232020,-150.0,0.00010096,2]
[335531265,1724314232029,-150.99,0.00010096,2]
[335531267,1724314232038,-155.0,0.00010097,2]
[335531269,1724314232048,-4993.79899021,0.000101,3]
[335531271,1724314232060,-1250.98806938,0.000101,3]
[335531273,1724314232074,-4055.21294041,0.000101,3]
[335531274,1724314232084,-499.99,0.000101,2]
[335531276,1724314232093,-150.99,0.000101,2]
[335531278,1724314232102,-6693.80705959,0.000102,3]
[335531283,1724314237587,-547.29718905,9.943e-05,2]
[335531284,1724314237596,-352.77390033,9.999e-05,2]
[335531285,1724314237606,-172.43124685,0.000102,3]
[335531286,1724314237618,-6833.76169356,0.000102,3]
[335531287,1724314237629,-181.77571444,0.00010241,2]
[335531288,1724314237642,-279.40428556,0.00010241,2]
[335531289,1724314237652,-939.86,0.00010241,2]
[335531290,1724314237663,-391.88821597,0.0001029,2]
[335531291,1724314237672,-358.07462775,0.0001029,2]
[335531292,1724314237683,-105.73537225,0.0001029,2]
[335531293,1724314237693,-4689.68732161,0.000103,3]
[335531294,1724314237703,-11491.499373,0.000103,3]
[335531295,1724314237719,-1018.81330539,0.000103,3]
[335531296,1724314237728,-500.0,0.00010334,2]
[335531297,1724314237737,-135.72320115,0.00010334,2]
[335531298,1724314237748,-364.27679885,0.00010334,2]
[335531299,1724314237757,-363.01768338,0.00010352,2]
[335531300,1724314237768,-661.76660003,0.00010352,2]
[335531301,1724314237803,-304.23573553,0.00010097,2]
[335531302,1724314237812,-1057.14201659,0.00010352,2]
[335531303,1724314237821,-109.50133289,0.00010352,2]
[335531304,1724314237832,-2244.72866711,0.00010352,2]
[335531305,1724314237841,-3400.0,0.000104,3]
[335531306,1724314237850,-507.88,0.00010457,2]
[335531307,1724314237859,-183.24126303,0.00010471,2]
[335531308,1724314237868,-3400.0,0.000105,3]
[335531309,1724314237878,-150.0,0.00010525,2]
[335531310,1724314237887,-150.0,0.00010531,2]
[335531311,1724314237896,-150.0,0.00010544,2]
[335531312,1724314237904,-150.0,0.00010545,2]
[335531314,1724314237913,-2297.28,0.00010552,2]
[335531315,1724314237922,-963.036,0.00010552,2]
[335531316,1724314237931,-150.0,0.00010554,2]
[335531317,1724314237941,-2330.14158828,0.00010566,2]
[335531318,1724314237950,-150.0,0.00010566,2]
[335531319,1724314237959,-1500.0,0.00010571,2]
[335531321,1724314237971,-150.0,0.00010577,2]
[335531323,1724314237981,-1500.0,0.00010582,2]
[335531325,1724314237990,-150.0,0.00010584,2]
[335531327,1724314237999,-150.0,0.00010586,2]
[335531329,1724314238008,-17136.17694353,0.000106,2]
[335531331,1724314238018,-3400.0,0.000106,3]
[335531333,1724314238027,-150.0,0.00010605,2]
[335531335,1724314238035,-150.0,0.00010613,2]
[335531337,1724314238045,-150.0,0.00010615,2]
[335531339,1724314238067,-150.0,0.00010616,2]
[335531341,1724314238077,-150.0,0.0001062,2]
[335531343,1724314238086,-2500.0,0.00010624,2]
[335531345,1724314238095,-1500.0,0.00010628,2]
[335531347,1724314238104,-150.0,0.00010638,2]
[335531349,1724314238113,-150.0,0.00010642,2]
[335531351,1724314238122,-150.0,0.00010646,2]
[335531353,1724314238131,-623.0,0.0001065,2]
[335531355,1724314238141,-1544.0,0.0001065,2]
[335531356,1724314238150,-1923.0,0.0001065,2]
[335531358,1724314238159,-1258.0,0.0001065,2]
[335531360,1724314238168,-150.0,0.0001065,2]
[335531362,1724314238177,-151.69,0.00010652,2]
[335531364,1724314238186,-150.0,0.00010653,2]
[335531366,1724314238195,-150.0,0.00010657,2]
[335531368,1724314238204,-300.0,0.00010673,2]
[335531370,1724314238214,-150.0,0.0001068,2]
[335531372,1724314238223,-150.0,0.00010681,2]
[335531374,1724314238233,-150.0,0.00010686,2]
[335531376,1724314238241,-150.0,0.00010687,2]
[335531378,1724314238251,-357.56753,0.0001069,2]
[335531380,1724314238259,-150.0,0.00010697,2]
[335531382,1724314238269,-391.96396113,0.00010699,2]
[335531384,1724314238277,-5405.81377925,0.00010699,2]
[335531386,1724314238287,-857.9925,0.000107,2]
[335531388,1724314238295,-173.64546013,0.000107,2]
[335531390,1724314238310,-3400.0,0.000107,3]
[335531391,1724314238319,-215.46235398,0.000107,2]
[335531392,1724314238328,-326.28228056,0.000107,2]
[335531393,1724314238337,-397.21525241,0.000107,2]
[335531394,1724314238346,-3383.49785203,0.000107,2]
[335531395,1724314238355,-150.0,0.00010701,2]
[335531396,1724314238364,-150.0,0.00010707,2]
[335531397,1724314238373,-152.64908017,0.0001071,2]
[335531398,1724314238382,-150.0,0.00010712,2]
[335531399,1724314238391,-150.0,0.00010715,2]
[335531400,1724314238401,-150.0,0.00010716,2]
[335531401,1724314238411,-150.0,0.00010719,2]
[335531402,1724314238422,-150.0,0.0001072,2]
[335531403,1724314238432,-556.0,0.00010724,2]
[335531404,1724314238441,-1138.0,0.00010724,2]
[335531405,1724314238451,-447.0,0.00010724,2]
[335531406,1724314238460,-810.0,0.00010724,2]
[335531407,1724314238471,-1897.0,0.00010724,2]
[335531408,1724314238480,-552.0,0.00010724,2]
[335531410,1724314238489,-3319.0,0.00010724,2]
[335531411,1724314238498,-1162.0,0.00010724,2]
[335531413,1724314238507,-248.0,0.00010724,2]
[335531415,1724314238516,-764.0,0.00010724,2]
[335531417,1724314238525,-150.0,0.00010726,2]
[335531419,1724314238534,-1500.0,0.00010728,2]
[335531420,1724314238543,-204.18160294,0.00010734,2]
[335531422,1724314238554,-150.0,0.0001074,2]
[335531424,1724314238563,-150.0,0.00010752,2]
[335531426,1724314238573,-150.0,0.00010752,2]
[335531428,1724314238582,-150.0,0.00010755,2]
[335531430,1724314238592,-150.0,0.00010756,2]
[335531432,1724314238601,-150.0,0.00010757,2]
[335531434,1724314238610,-150.0,0.00010764,2]
[335531436,1724314238620,-150.0,0.00010764,2]
[335531438,1724314238630,-1500.0,0.00010766,2]
[335531440,1724314238639,-150.0,0.00010771,2]
[335531442,1724314238648,-200.38227572,0.00010773,2]
[335531444,1724314238657,-200.0,0.00010773,2]
[335531446,1724314238667,-195.58173728,0.00010773,2]
[335531448,1724314238676,-150.0,0.00010776,2]
[335531450,1724314238686,-150.0,0.00010777,2]